Cogmind - Beta 17 @@@ ROGUE MODE // 2026.07.28 @ 02:08:04 Player: TheSkyeDoctor Result: Destroyed by Y-64 Sentinel with KE Penetrator Performance ------------- Evolutions (6) 3000 Regions Visited (10) 2000 Robots Destroyed (114) 570 Value Destroyed (2999) 2999 Prototype IDs (3) 60 Alien Tech Used (0) 0 Bonus (200) 200 TOTAL SCORE: 8829 Bonus ------- High Alert Combat Kills 108 Follower Combat Kills 220 Friendly Fire -128 Cogmind --------- Core Integrity 0/1150 Matter 300/300 Energy 99/100 System Corruption 3% Temperature Cool (0) Movement Core (50) Location -4/Upper Caves Parts ------- > --- POWER (2) -------- (None) > --- PROPULSION (6) --- (None) > --- UTILITY (7) ------ Hacking Suite > --- WEAPON (4) ------- (None) > --- INVENTORY (5) ---- High-capacity Storage Unit Energy Well (350) Large Matter Pod (150) Improved Medium Armor Plating Heavy Flail Peak State ------------ > --- POWER ------------ Light Angular Momentum Engine Neutrino Core > --- PROPULSION ------- Light Treads Light Treads Improved Treads Armored Treads > --- UTILITY ---------- Improved Cryofiber Web Advanced Heat Sink High-capacity Storage Unit Energy Well Machine Analyzer Improved Targeting Computer Improved Light Armor Plating > --- WEAPON ----------- Improved Medium Laser Dispersion Rifle KE Penetrator Heavy Shock Bomb Launcher > --- INVENTORY -------- Light Nuclear Core Light Nuclear Core Wheel Large Matter Pod Improved Terrain Scanner Seismic Detector Hacking Suite Hacking Suite System Shield Advanced Beam Cannon High-powered Shotgun Gauss Rifle Gauss Rifle Improved Light Cannon Improved Grenade Launcher Improved Datajack Plasma Cutter Heavy Flail Axe [Rating: 69] Favorites ----------- Power Heavy Ion Engine Engine Heavy Ion Engine Power Core Light Nuclear Core Reactor Light Antimatter Reactor Propulsion Light Treads Treads Light Treads Wheel Wheel Hover Unit Antigrav System Utility Machine Analyzer Device Seismic Detector Storage High-capacity Storage Unit Processor Machine Analyzer Hackware Hacking Suite Protection Improved Light Armor Plating Weapon Assault Rifle Energy Gun Improved Medium Laser Energy Cannon Plasma Cannon Ballistic Gun Assault Rifle Ballistic Cannon Improved Light Cannon Launcher Mini Grenade Launcher Special Weapon Plasma Cutter Impact Weapon Heavy Flail Special Melee Weapon Improved Datajack Build | -11 -10 -9 -9 -8 -7 -6 -5 -4 -4 -4 ------- Run | Yrd Mat Mat Sto Mat Fac Fac Fac Fac Upp Upp Slots Evolved 12 | . . 2 . 2 2 2 2 2 . . Power 1 | . . . . . . . 1 . . . Propulsion 4 | . . . . 1 1 . 1 1 . . Utility 5 | . . . . 1 1 2 . 1 . . Weapon 2 | . . 2 . . . . . . . . Parts Attached 66 | 8 1 6 9 8 4 6 2 10 10 2 Power 9 | 2 . 2 . . . 1 1 2 1 . Engine 4 | 2 . 1 . . . . . 1 . . Core 3 | . . 1 . . . . 1 1 . . Reactor 2 | . . . . . . 1 . . 1 . Propulsion 15 | 2 . . 3 2 2 2 . 2 2 . Treads 13 | 2 . . 3 2 2 2 . 2 . . Leg . | . . . . . . . . . . . Wheel 1 | . . . . . . . . . 1 . Hover 1 | . . . . . . . . . 1 . Flight . | . . . . . . . . . . . Utility 18 | 2 1 . 3 2 1 2 . 3 3 1 Device 5 | 1 . . . 1 . 1 . 1 1 . Storage 4 | 1 1 . 1 . . . . 1 . . Processor 2 | . . . . 1 . 1 . . . . Hackware 2 | . . . . . . . . . 2 . Protection 5 | . . . 2 . 1 . . 1 . 1 Artifact . | . . . . . . . . . . . Weapon 24 | 2 . 4 3 4 1 1 1 3 4 1 Energy Gun 6 | . . 2 1 1 . . . 1 1 . Energy Cannon 3 | . . . 1 1 . 1 . . . . Ballistic Gun 8 | 2 . 2 . 1 1 . 1 1 . . Ballistic Cannon 1 | . . . . . . . . . 1 . Launcher 3 | . . . 1 . . . . 1 1 . Special Weapon 1 | . . . . . . . . . . 1 Impact Weapon 1 | . . . . . . . . . 1 . Slashing Weapon . | . . . . . . . . . . . Piercing Weapon . | . . . . . . . . . . . Special Melee Weapon 1 | . . . . 1 . . . . . . Unidentified Prototypes 3 | . . 1 1 1 . . . . . . Parts Lost 48 | . . 1 4 2 1 1 . 6 27 6 Power 7 | . . 1 . . . . . 1 5 . Propulsion 12 | . . . 2 . 1 . . 3 6 . Utility 10 | . . . . . . . . 1 4 5 Weapon 19 | . . . 2 2 . 1 . 1 12 1 Highest Loss Streak 12 | . . 1 3 1 1 1 . 5 12 6 To Critical Strikes . | . . . . . . . . . . . Average Backups 12 | 2 3 5 9 10 18 19 19 19 13 4 Power 1 | . 1 . 1 1 2 2 2 2 1 . Propulsion 1 | . 1 1 2 1 1 2 2 1 . . Utility 4 | . 1 1 4 5 7 6 7 6 4 3 Weapon 3 | . . . 1 1 6 6 6 7 4 . Tool/Special . | . . . . . . . . . . . Unused Backups 5 | . . . . . 1 . . . 2 2 Power . | . . . . . . . . . . . Propulsion . | . . . . . . . . . . . Utility 3 | . . . . . . . . . 1 2 Weapon 2 | . . . . . 1 . . . 1 . Tool/Special . | . . . . . . . . . . . Average Slot Usage (%) 91 | . 100 95 99 96 99 99 99 93 61 23 Engine 5 | . 14 8 11 9 7 2 1 . 2 . Core 1 | . . 2 . . . . 3 5 2 . Reactor 1 | . . . . . . 3 5 4 . . Treads 22 | . 28 22 21 27 29 26 28 25 6 . Device 10 | . 14 11 . 7 7 12 11 14 9 6 Storage 8 | . 14 11 11 9 7 6 5 5 7 . Processor 6 | . . . . 8 7 13 11 10 8 3 Protection 3 | . . . 10 1 6 6 5 5 1 2 Energy Gun 8 | . . 7 11 17 15 8 5 8 3 . Energy Cannon 2 | . . . 4 5 . 4 5 4 . . Ballistic Gun 12 | . 28 32 20 4 7 6 5 4 6 . Launcher 1 | . . . 7 2 . . . . 1 . Special Melee Weapon 2 | . . . . 3 7 6 5 1 . . Peak Build Rating 69 | 7 7 14 17 26 36 47 51 69 69 23 Average Rating 31 | 5 7 12 15 23 33 43 50 60 46 14 On Entrance 26 | . 7 7 14 17 26 36 47 51 69 18 Avg Prop Armor Cover (%) 6 | . . . . . . . . . 6 . Naked Turns . | . . . . . . . . . . . Heaviest Build 96 | 15 30 39 61 63 63 72 80 96 96 9 Greatest Support 120 | 40 40 40 40 60 80 80 100 120 83 3 Greatest Overweight (x) 19 | . . . 1 1 1 . . 1 19 2 Average Overweight (x) . | . . . . . . . . . 2 . Largest Inventory Capacity 20 | 8 15 15 20 20 20 20 20 20 20 5 Average Capacity 16 | 7 11 15 16 20 20 20 20 20 16 5 Most Carried 20 | 3 4 8 11 14 20 20 20 20 20 5 Average Carried 12 | 2 3 5 9 10 18 19 19 19 13 4 Final Capacity 20 | 8 15 15 20 20 20 20 20 20 5 5 Final Carried 20 | 3 3 8 11 13 20 20 20 19 4 5 Class Distribution -------------------- 38% | Scavenger-Gunner 16% | Mutant 15% | Scavenger-Tank 11% | Gunner 6% | Scavenger-Skirmisher 4% | Scavenger-Mutant 3% | Tank 3% | Hacker-Mutant Dominant Class ---------------- Mutant | -10/Materials Gunner | -9/Materials Tank | -9/Storage Scavenger-Skirmisher | -8/Materials Scavenger-Tank | -7/Factory Scavenger-Gunner | -6/Factory Scavenger-Gunner | -5/Factory Scavenger-Gunner | -4/Factory Scavenger-Gunner | -4/Upper Caves Mutant | -4/Upper Caves Resources | -11 -10 -9 -9 -8 -7 -6 -5 -4 -4 -4 ----------- Run | Yrd Mat Mat Sto Mat Fac Fac Fac Fac Upp Upp Matter Collected 2343 | 372 64 275 378 426 89 97 105 128 399 10 Remotely . | . . . . . . . . . . . Salvage Created 4152 | 185 371 507 822 655 273 140 26 532 641 . Parts 217 | 18 11 45 47 36 14 2 1 24 19 . Haulers Intercepted 5 | . . 1 1 1 1 . . 1 . . Recyclers Shooed 2 | . . . . . . 1 . 1 . . Parts Field Recycled . | . . . . . . . . . . . Retrieved Matter . | . . . . . . . . . . . Parts Self-Destructed 25 | . . . . . . . . . 13 12 Prevented 6 | . . . . . . . . . 6 . Parts Restored . | . . . . . . . . . . . Kills | -11 -10 -9 -9 -8 -7 -6 -5 -4 -4 -4 ------- Run | Yrd Mat Mat Sto Mat Fac Fac Fac Fac Upp Upp Combat Hostiles Destroyed 70 | . 2 16 19 16 1 . . 4 12 . Melee 1 | . . . . . . . . . 1 . Guns 42 | . 2 16 11 6 1 . . 1 5 . Cannons 9 | . . . . 6 . . . 1 2 . AOE 17 | . . . 8 4 . . . 2 3 . Classes Destroyed 17 | 3 2 5 3 . 1 . . 2 1 . Worker 14 | 2 . . 2 5 . . 1 4 . . Builder 1 | . . . . . 1 . . . . . Tunneler 5 | 5 . . . . . . . . . . Hauler 5 | . . 1 1 1 1 . . 1 . . Recycler 8 | 1 3 . 1 . 2 1 . . . . Mechanic 1 | . . . 1 . . . . . . . Operator 5 | . . 2 2 1 . . . . . . Watcher 5 | . 1 2 2 . . . . . . . Swarmer 21 | . . 11 3 7 . . . . . . Grunt 31 | . 2 3 10 5 1 . . . 10 . Brawler 4 | . . 1 1 2 . . . . . . Duelist 2 | . . . 1 1 . . . . . . Protector 1 | . . . 1 . . . . . . . Sentry 5 | . . 1 3 1 . . . . . . Specialist 1 | . . . . . . . . 1 . . Hunter 3 | . . . . . . . . 3 . . Programmer 2 | . . . . . . . . . 2 . Best Kill Streak 9 | 3 6 5 9 8 3 1 1 8 4 . Combat Bots Only 9 | . 1 4 9 4 1 . . 4 4 . Max Kills in Single Turn 4 | 1 1 2 3 2 2 1 1 4 2 . Gunslinging 1 | . . 1 1 . . . . . . . Exploded 3 | . . . 3 1 . . . 1 1 . Melee 1 | . . . . . . . . . 1 . Uniques/NPCs Destroyed . | . . . . . . . . . . . Combat | -11 -10 -9 -9 -8 -7 -6 -5 -4 -4 -4 -------- Run | Yrd Mat Mat Sto Mat Fac Fac Fac Fac Upp Upp Hostile Shots Fired 605 | . 6 43 50 37 27 71 14 92 173 92 Missed 200 | . 2 14 9 9 14 21 4 33 53 41 Hits 405 | . 4 29 41 28 13 50 10 59 120 51 Projectile 405 | . 4 29 41 28 13 50 10 59 120 51 Critical Strikes 22 | . 1 . 2 1 . . 1 2 14 1 Part Disruptions 1 | . . . . . . . . 1 . . Damage Taken 6833 | . 102 268 823 464 185 427 188 1048 2448 880 Core 1362 | . 16 44 54 31 6 46 14 49 500 602 Absorbed by Shields . | . . . . . . . . . . . Redirected to Shielding 4 | . . . 4 . . . . . . . Core Remaining (%) 93 | 100 93 . 75 94 99 94 98 . . . Volleys Fired 192 | 17 11 26 27 27 9 8 14 18 35 . Largest 4 | 2 2 4 4 4 3 3 3 4 4 . Hottest 270 | 40 40 119 174 248 140 164 164 270 223 . Shots Fired 578 | 34 22 82 109 92 23 23 39 71 83 . Gun 462 | 34 22 82 91 61 23 17 25 46 61 . Cannon 75 | . . . 5 21 . 6 14 17 12 . Launcher 41 | . . . 13 10 . . . 8 10 . Special . | . . . . . . . . . . . Kinetic 282 | 34 22 73 64 7 7 8 13 10 44 . Thermal 255 | . . 9 32 75 16 15 26 53 29 . Explosive 31 | . . . 13 10 . . . . 8 . Electromagnetic 10 | . . . . . . . . 8 2 . Robot Hit Streak 11 | 7 11 7 8 11 4 5 7 10 9 . Robot Miss Streak 6 | 3 2 3 6 2 6 1 4 5 2 . Penetration Max 1 | . . . . . . 1 . . 1 . Secondary Targets 6 | . . 4 1 1 . . . . . . Max Gunslinging Chain 1 | . . 1 1 1 . . . . . . Shots Hit Robots 349 | 21 14 37 52 57 14 18 28 43 64 1 Core Hits 203 | 9 11 26 47 33 5 7 7 23 35 . Critical Kills 2 | . . . 1 . . . . . 1 . Critical Parts Destroyed 5 | . . . . . . . . 3 2 . Critical Strikes 16 | . . . 2 4 . . 1 4 5 . Burn 8 | . . . 1 4 . . 1 1 1 . Destroy 6 | . . . 1 . . . . 3 2 . Blast 1 | . . . . . . . . . 1 . Smash 1 | . . . . . . . . . 1 . Melee Attacks 29 | . . . . 4 2 1 6 1 12 3 Impact 15 | . . . . . . . . . 12 3 Slashing . | . . . . . . . . . . . Piercing . | . . . . . . . . . . . Sneak Attacks 12 | . . . . 4 2 1 4 1 . . Combat Hostiles . | . . . . . . . . . . . Follow-up Attacks . | . . . . . . . . . . . Damage Inflicted 8673 | 260 196 515 1479 1430 211 357 538 1331 2300 56 Guns 4440 | 260 196 515 636 543 211 230 323 639 887 . Cannons 1192 | . . . 20 371 . 127 215 279 180 . Explosions 2706 | . . . 823 516 . . . 413 954 . Melee 335 | . . . . . . . . . 279 56 Ramming . | . . . . . . . . . . . Kinetic 2528 | 260 196 448 433 50 64 134 172 129 642 . Thermal 3104 | . . 67 223 864 147 223 366 789 425 . Explosive 2141 | . . . 823 516 . . . . 802 . Electromagnetic 565 | . . . . . . . . 413 152 . Impact 335 | . . . . . . . . . 279 56 Slashing . | . . . . . . . . . . . Piercing . | . . . . . . . . . . . Highest Corruption 5 | . . . 5 . . . 2 1 3 3 Average Corruption 2 | . . . 5 . . . 1 1 2 3 Corruption Purged . | . . . . . . . . . . . Corruption Blocked . | . . . . . . . . . . . Effects 22 | . . . 10 . . . 3 1 6 2 Message Errors 3 | . . . 3 . . . . . . . Matter Fused 7 | . . . 4 . . . 1 . 2 . Heat Flow Errors 3 | . . . 1 . . . 1 . 1 . Energy Discharges 1 | . . . . . . . . . 1 . Data Loss (minor) 3 | . . . . . . . . 1 1 1 Data Loss (major) 2 | . . . 1 . . . . . . 1 Misfires 1 | . . . 1 . . . . . . . Weapon Failures 2 | . . . . . . . 1 . 1 . Overload Shots . | . . . . . . . . . . . Overflow Damage 234 | . . . 32 77 . . . 11 114 . Projectiles 11 | . . . . . . . . 11 . . Explosions 109 | . . . 32 77 . . . . . . Melee 114 | . . . . . . . . . 114 . Knockbacks 2 | . . . . . . . . . 1 1 Impact 1 | . . . . . . . . . . 1 Kinetic 1 | . . . . . . . . . 1 . Secondary . | . . . . . . . . . . . Self-Inflicted Damage 263 | . . . 89 108 . . . 42 24 . Shots 8 | . . . 2 3 . . . 2 1 . Rammed . | . . . . . . . . . . . Targets Rammed . | . . . . . . . . . . . Kicked . | . . . . . . . . . . . Crushed . | . . . . . . . . . . . Highest Temperature 480 | . 20 111 344 480 30 45 272 138 . . Average Temperature 103 | . 10 40 95 190 12 23 99 54 . . Received Heat Transfer 1211 | . 51 30 183 189 18 120 27 . 593 . Effects 3 | . . . 2 1 . . . . . . Interference 2 | . . . 2 . . . . . . . Short Circuit 1 | . . . . 1 . . . . . . Siege Activations . | . . . . . . . . . . . Martial Activations . | . . . . . . . . . . . Shielding Activations . | . . . . . . . . . . . Robots Disrupted . | . . . . . . . . . . . Combat Hostiles . | . . . . . . . . . . . Robots Corrupted 1 | . . . . . . . . . 1 . Combat Hostiles 1 | . . . . . . . . . 1 . Parts Fried 2 | . . . . . . . . 1 1 . Impact Corruptions 3 | . . . . . . . . . 3 . Robots Melted . | . . . . . . . . . . . Combat Hostiles . | . . . . . . . . . . . Parts Melted 13 | . . . 3 7 1 1 . 1 . . Heat Transferred 6517 | . . 173 621 2112 342 472 819 1164 814 . Parts Sabotaged . | . . . . . . . . . . . Parts Stolen . | . . . . . . . . . . . Parts Stripped . | . . . . . . . . . . . Power Chain Reactions 5 | . . . . . . . . 5 . . Alert | -11 -10 -9 -9 -8 -7 -6 -5 -4 -4 -4 ------- Run | Yrd Mat Mat Sto Mat Fac Fac Fac Fac Upp Upp Maximum Alert Level 3 | . . . 3 2 1 . . . . . Low Security (%) 78 | 100 100 100 23 . 85 100 100 100 . . Level 1 9 | . . . 7 53 14 . . . . . Level 2 11 | . . . 57 46 . . . . . . Level 3 1 | . . . 12 . . . . . . . Level 4 . | . . . . . . . . . . . Level 5 . | . . . . . . . . . . . High Security . | . . . . . . . . . . . Max Security . | . . . . . . . . . . . Peak Influence 744 | 15 57 193 744 567 239 45 21 84 . . Initial 306 | . . . 71 306 239 16 21 . . . Average 127 | 2 8 112 484 392 126 1 2 6 . . Influence Increases 2665 | 40 79 456 908 551 58 67 7 159 295 45 Destroy 0b10 Robot/C 1540 | . 40 320 500 340 20 . . 80 240 . Destroy 0b10 Robot/NC 225 | 40 20 25 50 35 20 5 5 25 . . Destroy Leader 290 | . 12 56 116 52 2 . . 12 40 . Allied During Kill 96 | . . . 91 5 . . . . . . Successful Hack 41 | . 5 24 7 5 . . . . . . Disable Machine 75 | . . . 30 30 . . . 15 . . Destroy Structure 188 | . 2 1 99 69 1 2 2 12 . . Lose Combat Pursuer 210 | . . 30 15 15 15 60 . 15 15 45 Influence Decreases 2635 | 40 79 286 353 749 552 55 52 101 353 15 Entered New Map 869 | . . . 99 419 288 17 24 . 22 . Time Decay 1444 | 40 79 276 214 270 254 38 28 51 194 . Lost Part 282 | . . 10 40 20 10 . . 50 137 15 Lost Ally 40 | . . . . 40 . . . . . . Squads Dispatched 22 | . 1 . 5 3 4 6 1 2 . . Investigation . | . . . . . . . . . . . Extermination 3 | . . . . . 1 1 . 1 . . Reinforcement 10 | . 1 . 2 2 3 . 1 1 . . Assault 3 | . . . 2 1 . . . . . . Garrison 6 | . . . 1 . . 5 . . . . Intercept . | . . . . . . . . . . . Searches Triggered . | . . . . . . . . . . . Construction Impeded . | . . . . . . . . . . . Haulers Reinforced 2 | . . . . . . . 1 1 . . Active Scanning Responses . | . . . . . . . . . . . Cargo Convoy Interrupts 1 | . . . . . . . . 1 . . Stealth | -11 -10 -9 -9 -8 -7 -6 -5 -4 -4 -4 --------- Run | Yrd Mat Mat Sto Mat Fac Fac Fac Fac Upp Upp Distress Signals 11 | . . 1 3 4 . . 1 2 . . Communications Jammed . | . . . . . . . . . . . Distress Signals . | . . . . . . . . . . . Times Spotted 163 | . 6 21 31 24 10 12 23 10 13 13 Peak Tracking Total 9 | . 1 4 7 5 2 4 4 7 4 9 Tactical Retreats 10 | . . 1 1 1 1 2 . 1 1 2 Traps | -11 -10 -9 -9 -8 -7 -6 -5 -4 -4 -4 ------- Run | Yrd Mat Mat Sto Mat Fac Fac Fac Fac Upp Upp Traps Triggered 5 | . 1 . . . . . . 4 . . Indirectly 4 | . . . . . . . . 4 . . Trap Hack Attempts 2 | . . . . . . . . 2 . . Triggered . | . . . . . . . . . . . Disarmed 1 | . . . . . . . . 1 . . Reprogrammed . | . . . . . . . . . . . Reused . | . . . . . . . . . . . Traps Extracted . | . . . . . . . . . . . Installed . | . . . . . . . . . . . Triggered . | . . . . . . . . . . . Machines | -11 -10 -9 -9 -8 -7 -6 -5 -4 -4 -4 ---------- Run | Yrd Mat Mat Sto Mat Fac Fac Fac Fac Upp Upp Machines Disabled 5 | . . . 2 2 . . . 1 . . Max in Single Turn 1 | . . . 1 1 . . . 1 . . Machines Repaired . | . . . . . . . . . . . Machines Dismantled . | . . . . . . . . . . . Machines Sabotaged . | . . . . . . . . . . . Overloaded Fab Kills . | . . . . . . . . . . . Hacking | -11 -10 -9 -9 -8 -7 -6 -5 -4 -4 -4 --------- Run | Yrd Mat Mat Sto Mat Fac Fac Fac Fac Upp Upp Machines Accessed 12 | . 2 4 2 3 . . . . . 1 Terminals 10 | . 2 3 2 3 . . . . . . Fabricators . | . . . . . . . . . . . Repair Stations . | . . . . . . . . . . . Recycling Units . | . . . . . . . . . . . Scanalyzers 1 | . . 1 . . . . . . . . Garrison Access . | . . . . . . . . . . . Total Hacks 26 | . 4 13 2 6 . . . . . 1 Successful 14 | . 1 9 1 2 . . . . . 1 Failed 11 | . 3 3 1 4 . . . . . . Catastrophic 3 | . 1 . 1 1 . . . . . . Database Lockouts 1 | . . 1 . . . . . . . . Manual 22 | . 4 11 1 6 . . . . . . Terminals 23 | . 4 11 2 6 . . . . . . Fabricators . | . . . . . . . . . . . Repair Stations . | . . . . . . . . . . . Recycling Units . | . . . . . . . . . . . Scanalyzers 2 | . . 2 . . . . . . . . Garrison Access . | . . . . . . . . . . . Terminal Hacks 5 | . . 3 1 . . . . . . 1 Open Door 2 | . . . 1 . . . . . . 1 Branch Access Points 3 | . . 3 . . . . . . . . Fabricator Hacks . | . . . . . . . . . . . Repair Station Hacks . | . . . . . . . . . . . Recycling Unit Hacks . | . . . . . . . . . . . Scanalyzer 1 | . . 1 . . . . . . . . Retrieve Study 1 | . . 1 . . . . . . . . Garrison Access Hacks . | . . . . . . . . . . . Unauthorized Hacks 8 | . 1 5 . 2 . . . . . . Terminals 8 | . 1 5 . 2 . . . . . . Assimilate 2 | . . 2 . . . . . . . . Botnet 6 | . 1 3 . 2 . . . . . . Fabricators . | . . . . . . . . . . . Repair Stations . | . . . . . . . . . . . Recycling Units . | . . . . . . . . . . . Scanalyzers . | . . . . . . . . . . . Garrison Access . | . . . . . . . . . . . Data Cores Recovered 3 | . . 1 . . 1 1 . . . . Used . | . . . . . . . . . . . Hacking Detections 8 | . 2 2 1 3 . . . . . . Full Trace Events 1 | . . 1 . . . . . . . . Feedback Events . | . . . . . . . . . . . Feedback Blocked . | . . . . . . . . . . . Robot Schematics Acquired . | . . . . . . . . . . . Robots Built . | . . . . . . . . . . . Authchips . | . . . . . . . . . . . Time . | . . . . . . . . . . . Total Robot Build Rating . | . . . . . . . . . . . Part Schematics Acquired . | . . . . . . . . . . . Parts Built . | . . . . . . . . . . . Authchips . | . . . . . . . . . . . Time . | . . . . . . . . . . . Total Part Build Rating . | . . . . . . . . . . . Part Studies Acquired 1 | . . 1 . . . . . . . . Parts Repaired . | . . . . . . . . . . . Time . | . . . . . . . . . . . Parts Recycled . | . . . . . . . . . . . Recycled Matter . | . . . . . . . . . . . Retrieved Matter . | . . . . . . . . . . . Retrieved Components . | . . . . . . . . . . . Parts Scanalyzed . | . . . . . . . . . . . Part Schematics Acquired . | . . . . . . . . . . . Parts Damaged . | . . . . . . . . . . . Bothacking | -11 -10 -9 -9 -8 -7 -6 -5 -4 -4 -4 ------------ Run | Yrd Mat Mat Sto Mat Fac Fac Fac Fac Upp Upp Used RIF Installer . | . . . . . . . . . . . Robots Hacked 7 | . . . . 2 2 1 2 . . . Non-combat 7 | . . . . 2 2 1 2 . . . Combat . | . . . . . . . . . . . Robot Hacks Applied 7 | . . . . 2 2 1 2 . . . parse_system 7 | . . . . 2 2 1 2 . . . Relay Couplers Released . | . . . . . . . . . . . Fabnet Peak Effective % . | . . . . . . . . . . . Robots Rewired . | . . . . . . . . . . . Allies Hacked . | . . . . . . . . . . . Hacks Repelled . | . . . . . . . . . . . Allies | -11 -10 -9 -9 -8 -7 -6 -5 -4 -4 -4 -------- Run | Yrd Mat Mat Sto Mat Fac Fac Fac Fac Upp Upp Total Allies 2 | . . . 2 . . . . . . . Largest Group 2 | . . . 2 2 . . . . . . Highest-Rated Group 62 | . . . 62 59 . . . . . . Highest-Rated Ally 31 | . . . 31 31 . . . . . . Total Orders . | . . . . . . . . . . . Ally Attacks 49 | . . . 38 11 . . . . . . Total Damage 629 | . . . 457 172 . . . . . . Kills 8 | . . . 7 1 . . . . . . Allies Corrupted . | . . . . . . . . . . . Allies Melted . | . . . . . . . . . . . Intel | -11 -10 -9 -9 -8 -7 -6 -5 -4 -4 -4 ------- Run | Yrd Mat Mat Sto Mat Fac Fac Fac Fac Upp Upp Active Infowar (turns) 4806 | 36 583 635 25 596 545 693 364 658 565 106 Terrain 28 | . . . . . . . . . 28 . Seismic 3050 | 36 583 635 25 . . 692 364 597 19 99 Machine Analysis 3527 | . . . . 596 545 693 364 658 565 106 Robot Analysis Total . | . . . . . . . . . . . Derelict Logs Recovered 1 | . . . . . . . . . 1 . Drone Launches . | . . . . . . . . . . . Drone Recoveries . | . . . . . . . . . . . Exploration | -11 -10 -9 -9 -8 -7 -6 -5 -4 -4 -4 ------------- Run | Yrd Mat Mat Sto Mat Fac Fac Fac Fac Upp Upp Turns Passed 5581 | 216 583 635 450 597 545 693 364 658 686 154 Spaces Moved 2792 | 100 259 324 184 271 298 385 179 341 263 188 Core 309 | 7 . . . . . . . . 114 188 Treads 2434 | 93 259 324 184 271 298 385 179 341 100 . Legs . | . . . . . . . . . . . Wheels 15 | . . . . . . . . . 15 . Hover 34 | . . . . . . . . . 34 . Flight . | . . . . . . . . . . . Fastest Speed 50 | 50 160 160 160 160 160 162 162 161 100 50 Average Speed 161 | 152 160 160 180 176 162 162 162 164 200 75 Slowest Speed 1000 | 160 160 160 200 200 200 162 162 222 1000 150 Overloaded Moves . | . . . . . . . . . . . Propulsion Burnouts . | . . . . . . . . . . . Robots Hopped . | . . . . . . . . . . . Potential Cave-ins . | . . . . . . . . . . . Cave-ins Triggered 1 | . . . 1 . . . . . . . Exploration Rate (%) 24 | 6 43 27 48 24 13 6 6 9 51 36 Regions Visited 10 Branch Regions 3 Pre-discovered Areas . | . . . . . . . . . . . Known Exits Taken 1 | . . 1 . . . . . . . . Unknown Exits Taken 9 | 1 1 . 1 1 1 1 1 1 1 . Scrap Searched 1 | . . . . . . . . . . 1 Spaces Dug . | . . . . . . . . . . . Terrain Destroyed 244 | . . . 100 82 1 . . 6 55 . Melee . | . . . . . . . . . . . Projectile 3 | . . . . . 1 . . . 2 . AOE 241 | . . . 100 82 . . . 6 53 . Terrain Rammed . | . . . . . . . . . . . Walls Destroyed . | . . . . . . . . . . . Machines Disabled . | . . . . . . . . . . . Actions | -11 -10 -9 -9 -8 -7 -6 -5 -4 -4 -4 --------- Run | Yrd Mat Mat Sto Mat Fac Fac Fac Fac Upp Upp Total 3403 | 126 406 383 236 326 342 437 221 392 339 195 Wait 258 | . 133 21 5 5 18 34 19 15 8 . Move 2782 | 99 258 323 183 270 297 384 178 340 262 188 Hop . | . . . . . . . . . . . Pick Up 33 | 2 1 5 6 4 8 1 . 3 2 1 Fast Attach 20 | 7 . 3 1 3 1 . . 3 1 1 Attach 36 | . . 1 4 4 2 3 2 4 15 1 Detach 6 | . . 1 1 3 . . . . . 1 Swap 28 | 1 1 2 6 3 3 4 2 4 2 . Drop 17 | . 2 1 3 3 2 2 . 2 2 . Fire 192 | 17 11 26 27 27 9 8 14 18 35 . Melee 29 | . . . . 4 2 1 6 1 12 3 Ram . | . . . . . . . . . . . Kick . | . . . . . . . . . . . Crush . | . . . . . . . . . . . Escape Stasis . | . . . . . . . . . . . Rewire . | . . . . . . . . . . . Trap 2 | . . . . . . . . 2 . . Miscellaneous . | . . . . . . . . . . . Route ------- -11/Scrapyard -10/Materials (discovered 3 exits: *Mat x2 / [*Min]) -9/Materials (discovered 2 exits: Min / *Sto) -9/Storage -8/Materials -7/Factory (discovered 2 exits: [*Fac] / [*Low]) -6/Factory (discovered 2 exits: [*Fac] / [*Low]) -5/Factory -4/Factory -4/Upper Caves -4/Upper Caves (discovered 1 exit: [*Res]) History --------- Turn | Location | Event 11 | -11/Scrapyard | Discovered new exit (range 16) 217 | -11/Scrapyard | Entered Materials 313 | -10/Materials | Build established: Mutant 315 | -10/Materials | Discovered new exit (range 7) 521 | -10/Materials | Discovered new exit (range 15) 630 | -10/Materials | Discovered new exit (range 12) 800 | -10/Materials | Entered another Materials area 800 | -9/Materials | Evolved 2 slots: Weapon x2 896 | -9/Materials | Identified exit to Mines 896 | -9/Materials | Identified exit to Storage 1136 | -9/Materials | Central database locked down 1140 | -9/Materials | Build established: Gunner 1435 | -9/Materials | Entered Storage 1515 | -9/Storage | Met a pair of Derelict thieves 1594 | -9/Storage | Crushed by falling debris 1601 | -9/Storage | Destroyed 9 combat bots 1621 | -9/Storage | Garrison activated, responded to threat 1659 | -9/Storage | Lost 3 parts (2n1w) 1840 | -9/Storage | Discovered new exit (range 6) 1885 | -9/Storage | Entered Materials 1885 | -8/Materials | Accompanied by 2 allies 1885 | -8/Materials | Evolved 2 slots: Propulsion x1, Utility x1 1985 | -8/Materials | Build established: Scavenger-Tank 2285 | -8/Materials | First assault squad dispatched 2311 | -8/Materials | Met 7R-MNS 2466 | -8/Materials | Discovered new exit (range 11) 2482 | -8/Materials | Entered Factory 2482 | -7/Factory | Evolved 2 slots: Propulsion x1, Utility x1 2483 | -7/Factory | Caught up to 7R-MNS 2933 | -7/Factory | Discovered new exit (range 16) 3004 | -7/Factory | Discovered new exit (range 14) 3027 | -7/Factory | Entered another Factory area 3027 | -6/Factory | Evolved 2 slots: Utility x2 3028 | -6/Factory | Caught up to 7R-MNS 3036 | -6/Factory | Discovered new exit (range 14) 3082 | -6/Factory | Discovered new exit (range 10) 3243 | -6/Factory | Garrison activated, responded to threat 3332 | -6/Factory | Build established: Scavenger-Gunner 3578 | -6/Factory | Garrison activated, responded to threat 3720 | -6/Factory | Entered another Factory area 3720 | -5/Factory | Evolved 2 slots: Power x1, Propulsion x1 3721 | -5/Factory | Caught up to 7R-MNS 4076 | -5/Factory | Discovered new exit (range 7) 4084 | -5/Factory | Entered another Factory area 4084 | -4/Factory | Evolved 2 slots: Propulsion x1, Utility x1 4085 | -4/Factory | Caught up to 7R-MNS 4619 | -4/Factory | Cargo convoy interrupted 4650 | -4/Factory | 7R-MNS lamented failing the tripod run 4713 | -4/Factory | Discovered new exit (range 6) 4731 | -4/Factory | Lost 5 parts (1p2n1u1w) 4742 | -4/Factory | Entered Upper Caves 4999 | -4/Upper Caves | Lost 6 parts (2n1u3w) 5077 | -4/Upper Caves | Lost 7 parts (4p1n2w) 5335 | -4/Upper Caves | Lost 12 parts (1p2n3u6w) 5335 | -4/Upper Caves | Learned location of 1 exit from Proximity Caves 5408 | -4/Upper Caves | Discovered new exit (range 7) 5412 | -4/Upper Caves | Encountered a Warlord checkpoint 5428 | -4/Upper Caves | Entered another Upper Caves area 5496 | -4/Upper Caves | Core integrity fell below 50% 5525 | -4/Upper Caves | Discovered new exit (range 13) 5549 | -4/Upper Caves | Core integrity fell below 20% 5566 | -4/Upper Caves | Lost 6 parts (5u1w) 5582 | -4/Upper Caves | Attracted the attention of an 0b10 checkpoint 5582 | -4/Upper Caves | Destroyed by Y-64 Sentinel with KE Penetrator Last Messages --------------- 05495_ Y-72 Warden: "ENEMY REINFORCEMENTS INCOMING." 05506_ P-70 Sage knocked back. 05510_ Lyr. Light Armor Plating destroyed. 05511_ Hacking Suite destroyed. 05515_ System corrupted: Component data lost. 05515_ Plasma Cutter destroyed. 05518_ Imp. Cryofiber Web destroyed. 05525_ EXIT=FOUND 05528_ Seismic Detector destroyed. 05535_ Machine Analyzer destroyed. 05545_ Penetrated by Slug. 05548_ Slug penetrates Wall. 05553_ Slug penetrates S-27 Virus. 05553_ S-27 Virus destroyed. 05553_ Slug penetrates Wall. 05570_ Penetrated by Slug. 05582_ Y-64 Sentinel: "INTERCEPTING UNREGISTERED DERELICT." 05582_ Penetrated by Slug. Map ----- +----------------------------------------------------+ | ?????????????????????????????????????????????????? | | ?????????????????????????????????????????????????? | | ?????????????????????????????????????????????????? | | ?????????????????????????????????????????????????? | | ?????????????????????????????????????????????????? | | ?????????????????????????????????????????????????? | | ?????????????????????????????????????????????????? | | ?????????????????????????????????????????????????? | | ?????????????????????????????????????????????????? | | ?????????????????????????????????????????????????? | | ?????????????????????????????????????????????????? | | ?????????????????????????????????????????????????? | | ????????????????????????????#????????????????????? | | ????????????????? ?????????# ????????????????????? | | ?????????????????# ???????# ????????????????????? | | ?????????????????# ????## ?????????????????????? | | ????????????????## ????# ????#####????????????? | | ???????????????## ???# ???? ###??????????? | | ???????????????? #### ???? #??????????? | | ????????????????? #??? #??????????? | | ??????????????????# #??? g ##?????????? | | ???????????????????# #### Y ?????????? | | ??????????????????## ## ?????????? | | ??????????????????# s ????????? | | ??????????????????# ????????????? | | ??????????????????# @ #??????????????????? | | ??????????????????## ##?????????????????? | | ???????????????????## #????????????????? | | ????????????????????## ####?????????????? | | ?????????????????????# ########???? | | ?????????????????????# ### #???? | | ?????????????????????## #?## #??? | | ??????????????????????## #??## ########?? # | | ???????????????????????# #???# #????????# ? | | ???????????????????????# ##??## ###?????# #? ? | | ???????????????????????###???## ##??## #?? ? | | ??????????????????????????#### #### #?## ? | | ??????????????????????????# ## #???# ? | | ??????????????????????????# ##?## ? | | ??????????????????????????# #?# #? | | ??????????????????????????# #?# ## | | ??????????????????????????# ## ### | | ?????????????????????????# ?## ## ## | | ???????????????????????? ??# #### ## ## | | ?????????????????????? ?? #?## ### # | | ?????????????????????? ? #?# #### # | | ??????????????????????##### #?# ### # | | ??????????????????????????## #?# # | | ???????????????????????????### #?# # | | ?????????????????????????????# ??# ### # | +----------------------------------------------------+ Best States ------------- Heat Dissipation 81 Energy Generation 32 Energy Capacity 715 Matter Stores 300 Matter Capacity 300 Sight Range 16 Terrain Scan Range 16 Terrain Scan Density 10 Base Temperature (-) 150 Armor Coverage 150 Core Shielding 20 Evasion (%) 50 Targeting Accuracy 6 Recoil Reduction 6 Offensive Hacking 20 Item Schematics ----------------- None Robot Schematics ------------------ None Fabricated ------------ Nothing Repaired ---------- Nothing Studied --------- Lgt. Treads | -9/Materials | Hacked Alien Tech Used ----------------- None Achievements -------------- None Challenges ------------ None Game ------ Seed IonicAccelerationMonowheel Manual? 0 Play Time 00:38:39 Cumulative 139.1 hours Start 2026.07.27 @ 23:20:19 End 2026.07.28 @ 02:08:04 Sessions 1 Manual Loads 0 Difficulty Rogue Special Mode None Game No. 289 Rogue 289 Adventurer 0 Explorer 0 Win Type - Total 1 Types 1/0/0/0/0/0/0/0/0/0 Lore% 55 Gallery% 55 Achievement% 43 Wizard Run 0 Options --------- Layout 1 ASCII 0 Keyboard 1 Movement Arrows Keybinds 0 Fullscreen 2 Font 24/Smallcaps Map View 50x35 Zoom Use 0% Tactical HUD 1 Map Filters NONE Filters NONE Steam 1 RUN: edbe654f-08b1-4a5a-9303-283a1cc5e439